fUST/lending_fUST_20250717
["ID","MTS","AMOUNT","RATE_DAILY","PERIOD"]
[372578619,1752691839838,-460.0,0.00019178,2]
[372578620,1752691839847,-460.0,0.00019178,2]
[372578621,1752691839857,-460.0,0.00019178,2]
[372578622,1752691839867,-460.0,0.00019178,2]
[372578623,1752691839878,-460.0,0.00019178,2]
[372578624,1752691839887,-460.0,0.00019178,2]
[372578625,1752691839897,-460.0,0.00019178,2]
[372578626,1752691839906,-460.0,0.00019178,2]
[372578627,1752691839915,-460.0,0.00019178,2]
[372578628,1752691839925,-460.0,0.00019178,2]
[372578629,1752691839934,-460.0,0.00019178,2]
[372578630,1752691839943,-460.0,0.00019178,2]
[372578631,1752691839953,-460.0,0.00019178,2]
[372578632,1752691839962,-460.0,0.00019178,2]
[372578633,1752691839971,-460.0,0.00019178,2]
[372578634,1752691839981,-3294.4,0.00019178,2]
[372578635,1752691839991,-460.0,0.00019178,2]
[372578636,1752691840000,-460.0,0.00019178,2]
[372578637,1752691840009,-460.0,0.00019178,2]
[372578638,1752691840019,-460.0,0.00019178,2]
[372578639,1752691840031,-463.41811453,0.00019178,2]
[372578640,1752691840043,-460.0,0.00019178,2]
[372578641,1752691840052,-460.0,0.00019178,2]
[372578642,1752691840061,-460.0,0.00019178,2]
[372578643,1752691840071,-183.82588915,0.00019178,2]
[372578644,1752691840080,-480.7,0.00019178,2]
[372578645,1752691840090,-460.0,0.00019178,2]
[372578646,1752691840102,-460.0,0.00019178,2]
[372578647,1752691840111,-460.0,0.00019178,2]
[372578648,1752691840121,-460.0,0.00019178,2]
[372578649,1752691840131,-467.41459426,0.00019178,2]
[372578650,1752691840140,-460.0,0.00019178,2]
[372578651,1752691840149,-464.87267364,0.00019178,2]
[372578652,1752691840159,-460.0,0.00019178,2]
[372578653,1752691840169,-460.0,0.00019178,2]
[372578654,1752691840179,-460.0,0.00019178,2]
[372578655,1752691840189,-460.0,0.00019178,2]
[372578656,1752691840200,-490.68,0.00019178,2]
[372578657,1752691840209,-460.0,0.00019178,2]
[372578658,1752691840219,-460.0,0.00019178,2]
[372578659,1752691840229,-460.0,0.00019178,2]
[372578660,1752691840238,-460.0,0.00019178,2]
[372578661,1752691840247,-1119.71,0.00019178,2]
[372578662,1752691840257,-460.0,0.00019178,2]
[372578663,1752691840266,-460.0,0.00019178,2]
[372578664,1752691840276,-460.0,0.00019178,2]
[372578665,1752691840286,-460.0,0.00019178,2]
[372578667,1752691840295,-460.0,0.00019178,2]
[372578670,1752691840305,-2035.33,0.00019178,2]
[372578673,1752691840315,-460.0,0.00019178,2]
[372578676,1752691840324,-460.0,0.00019178,2]
[372578678,1752691840333,-460.0,0.00019178,2]
[372578681,1752691840343,-473.24193878,0.00019178,2]
[372578683,1752691840352,-460.0,0.00019178,2]
[372578685,1752691840361,-947.11,0.00019178,2]
[372578688,1752691840370,-1338.37,0.00019178,2]
[372578690,1752691840379,-1036.43,0.00019178,2]
[372578691,1752691840388,-460.0,0.00019178,2]
[372578693,1752691840397,-460.0,0.00019178,2]
[372578695,1752691840406,-4639.56,0.00019178,2]
[372578697,1752691840415,-857.94,0.00019178,2]
[372578699,1752691840425,-460.0,0.00019178,2]
[372578701,1752691840434,-460.0,0.00019178,2]
[372578703,1752691840443,-460.0,0.00019178,2]
[372578704,1752691840453,-6797.45,0.00019178,2]
[372578705,1752691840462,-626.62,0.00019178,2]
[372578706,1752691840472,-460.0,0.00019178,2]
[372578707,1752691840481,-460.0,0.00019178,2]
[372578708,1752691840491,-460.0,0.00019178,2]
[372578709,1752691840502,-460.0,0.00019178,2]
[372578710,1752691840512,-2073.7,0.00019178,2]
[372578711,1752691840521,-460.0,0.00019178,2]
[372578712,1752691840532,-460.0,0.00019178,2]
[372578713,1752691840542,-460.0,0.00019178,2]
[372578714,1752691840551,-460.0,0.00019178,2]
[372578715,1752691840560,-1017.05,0.00019178,2]
[372578716,1752691840570,-460.0,0.00019178,2]
[372578717,1752691840579,-460.0,0.00019178,2]
[372578718,1752691840589,-4815.32,0.00019178,2]
[372578719,1752691840598,-460.0,0.00019178,2]
[372578720,1752691840608,-460.0,0.00019178,2]
[372578721,1752691840617,-460.0,0.00019178,2]
[372578722,1752691840627,-460.0,0.00019178,2]
[372578723,1752691840636,-460.0,0.00019178,2]
[372578724,1752691840646,-4790.96,0.00019178,2]
[372578725,1752691840655,-460.0,0.00019178,2]
[372578726,1752691840664,-460.0,0.00019178,2]
[372578727,1752691840674,-460.0,0.00019178,2]
[372578728,1752691840684,-460.0,0.00019178,2]
[372578729,1752691840693,-460.0,0.00019178,2]
[372578730,1752691840702,-657.78,0.00019178,2]
[372578731,1752691840712,-736.37,0.00019178,2]
[372578732,1752691840721,-707.16,0.00019178,2]
[372578733,1752691840731,-460.0,0.00019178,2]
[372578734,1752691840740,-1707.87,0.00019178,2]
[372578735,1752691840750,-460.0,0.00019178,2]
[372578736,1752691840759,-460.0,0.00019178,2]
[372578737,1752691840769,-460.0,0.00019178,2]
[372578738,1752691840778,-460.0,0.00019178,2]
[372578739,1752691840788,-460.0,0.00019178,2]
[372578740,1752691840797,-460.0,0.00019178,2]
[372578741,1752691840807,-460.0,0.00019178,2]
[372578742,1752691840816,-672.05,0.00019178,2]
[372578743,1752691840826,-460.0,0.00019178,2]
[372578744,1752691840835,-460.0,0.00019178,2]
[372578745,1752691840845,-460.0,0.00019178,2]
[372578746,1752691840854,-460.0,0.00019178,2]
[372578747,1752691840863,-462.35371516,0.00019178,2]
[372578748,1752691840873,-472.43132173,0.00019178,2]
[372578749,1752691840882,-460.0,0.00019178,2]
[372578750,1752691840892,-754.8,0.00019178,2]
[372578751,1752691840902,-460.0,0.00019178,2]
[372578752,1752691840911,-460.0,0.00019178,2]
[372578753,1752691840921,-460.0,0.00019178,2]
[372578754,1752691840930,-460.0,0.00019178,2]
[372578755,1752691840940,-2035.47,0.00019178,2]
[372578756,1752691840949,-2856.91,0.00019178,2]
[372578757,1752691840959,-460.0,0.00019178,2]
[372578758,1752691840968,-460.0,0.00019178,2]
[372578759,1752691840978,-460.0,0.00019178,2]
[372578760,1752691840988,-460.0,0.00019178,2]
[372578761,1752691840997,-460.0,0.00019178,2]
[372578762,1752691841006,-460.0,0.00019178,2]
[372578763,1752691841015,-460.0,0.00019178,2]
[372578764,1752691841025,-460.0,0.00019178,2]
[372578765,1752691841037,-1429.59,0.00019178,2]
[372578766,1752691841047,-694.94,0.00019178,2]
[372578767,1752691841056,-558.04,0.00019178,2]
[372578768,1752691841068,-460.0,0.00019178,2]
[372578769,1752691841078,-460.0,0.00019178,2]
[372578770,1752691841088,-460.0,0.00019178,2]
[372578771,1752691841098,-460.0,0.00019178,2]
[372578772,1752691841107,-1651.48,0.00019178,2]
[372578773,1752691841117,-819.02,0.00019178,2]
[372578774,1752691841128,-460.0,0.00019178,2]
[372578775,1752691841138,-524.37,0.00019178,2]
[372578776,1752691841147,-460.0,0.00019178,2]
[372578777,1752691841159,-550.2136756,0.00019178,2]
[372578778,1752691841170,-460.0,0.00019178,2]
[372578779,1752691841180,-460.0,0.00019178,2]
[372578780,1752691841190,-2569.94,0.00019178,2]
[372578781,1752691841201,-460.0,0.00019178,2]
[372578782,1752691841211,-460.0,0.00019178,2]
[372578783,1752691841220,-460.0,0.00019178,2]
[372578784,1752691841230,-460.0,0.00019178,2]
[372578785,1752691841240,-460.0,0.00019178,2]
[372578786,1752691841249,-460.0,0.00019178,2]
[372578787,1752691841259,-2591.26,0.00019178,2]
[372578788,1752691841269,-604.35,0.00019178,2]
[372578789,1752691841279,-463.71353092,0.00019178,2]
[372578790,1752691841291,-460.0,0.00019178,2]
[372578791,1752691841300,-460.0,0.00019178,2]
[372578792,1752691841310,-546.21,0.00019178,2]
[372578793,1752691841319,-460.0,0.00019178,2]
[372578794,1752691841329,-167.58975453,0.00019178,2]
[372578795,1752691841338,-460.0,0.00019178,2]
[372578796,1752691841347,-460.0,0.00019178,2]
[372578797,1752691841357,-854.66,0.00019178,2]
[372578798,1752691841366,-460.0,0.00019178,2]
[372578799,1752691841376,-460.0,0.00019178,2]
[372578800,1752691841385,-460.0,0.00019178,2]
[372578801,1752691841395,-2805.27,0.00019178,2]
[372578802,1752691841405,-460.0,0.00019178,2]
[372578803,1752691841414,-460.0,0.00019178,2]
[372578804,1752691841424,-460.0,0.00019178,2]
[372578805,1752691841434,-460.0,0.00019178,2]
[372578806,1752691841443,-460.0,0.00019178,2]
[372578807,1752691841453,-460.0,0.00019178,2]
[372578808,1752691841462,-1026.74,0.00019178,2]
[372578809,1752691841472,-10126.56848597,0.00019261,2]
[372578810,1752691841481,-5000.0,0.00019347,2]
[372578811,1752691841491,-466.12425398,0.00019352,2]
[372578812,1752691841501,-460.0,0.00019452,2]
[372578813,1752691841511,-414.25658974,0.00019452,2]
[372578814,1752691841521,-460.0,0.00019452,2]
[372578815,1752691841531,-460.0,0.00019452,2]
[372578816,1752691841542,-460.0,0.00019452,2]
[372578817,1752691841552,-460.0,0.00019452,2]
[372578818,1752691841562,-460.0,0.00019452,2]
[372578819,1752691841571,-460.0,0.00019452,2]
[372578820,1752691841581,-460.0,0.00019452,2]
[372578821,1752691841591,-460.0,0.00019452,2]
[372578822,1752691841600,-460.0,0.00019452,2]
[372578823,1752691841610,-460.0,0.00019452,2]
[372578824,1752691841620,-460.0,0.00019452,2]
[372578825,1752691841630,-460.0,0.00019452,2]
[372578826,1752691841640,-440.92957953,0.00019452,2]
[372578827,1752691841650,-460.0,0.00019452,2]
[372578828,1752691841659,-575.44,0.00019452,2]
[372578829,1752691841669,-460.0,0.00019452,2]
[372578830,1752691841679,-460.0,0.00019452,2]
[372578831,1752691841689,-460.0,0.00019452,2]
[372578832,1752691841698,-469.31,0.00019452,2]
[372578833,1752691841709,-460.0,0.00019452,2]
[372578834,1752691841719,-460.0,0.00019452,2]
[372578835,1752691841729,-460.0,0.00019452,2]
[372578836,1752691841739,-460.0,0.00019452,2]
[372578837,1752691841749,-460.0,0.00019452,2]
[372578838,1752691841759,-460.0,0.00019452,2]
[372578839,1752691841768,-460.0,0.00019452,2]
[372578840,1752691841778,-460.0,0.00019452,2]
[372578841,1752691841789,-460.0,0.00019452,2]
[372578842,1752691841799,-460.0,0.00019452,2]
[372578843,1752691841809,-460.0,0.00019452,2]
[372578844,1752691841819,-466.78,0.00019452,2]
[372578845,1752691841828,-460.0,0.00019452,2]
[372578846,1752691841839,-460.0,0.00019452,2]
[372578847,1752691841848,-460.0,0.00019452,2]
[372578848,1752691841858,-634.38,0.00019452,2]
[372578849,1752691841868,-460.0,0.00019452,2]
[372578850,1752691841877,-460.0,0.00019452,2]
[372578851,1752691841887,-460.0,0.00019452,2]
[372578852,1752691841897,-460.0,0.00019452,2]
[372578853,1752691841907,-460.0,0.00019452,2]
[372578854,1752691841917,-460.0,0.00019452,2]
[372578855,1752691841927,-460.0,0.00019452,2]
[372578856,1752691841937,-460.0,0.00019452,2]
[372578857,1752691841946,-635.4,0.00019452,2]
[372578858,1752691841955,-460.0,0.00019452,2]
[372578859,1752691841965,-460.0,0.00019452,2]
[372578860,1752691841974,-479.04,0.00019452,2]
[372578861,1752691841983,-460.0,0.00019452,2]
[372578862,1752691841992,-460.0,0.00019452,2]
[372578863,1752691842002,-460.0,0.00019452,2]
[372578864,1752691842011,-460.0,0.00019452,2]
[372578865,1752691842023,-460.0,0.00019452,2]
[372578866,1752691842034,-716.68,0.00019452,2]
[372578867,1752691842044,-460.0,0.00019452,2]
[372578868,1752691842054,-460.0,0.00019452,2]
[372578869,1752691842065,-460.0,0.00019452,2]
[372578870,1752691842075,-460.0,0.00019452,2]
[372578871,1752691842084,-861.28,0.00019452,2]
[372578872,1752691842094,-460.0,0.00019452,2]
[372578873,1752691842103,-460.0,0.00019452,2]
[372578874,1752691842114,-460.0,0.00019452,2]
[372578875,1752691842123,-460.0,0.00019452,2]
[372578876,1752691842133,-299.79826105,0.00019452,2]
[372578878,1752691842143,-460.0,0.00019452,2]
[372578880,1752691842152,-460.0,0.00019452,2]
[372578882,1752691842162,-460.0,0.00019452,2]
[372578884,1752691842171,-460.0,0.00019452,2]
[372578885,1752691842181,-460.0,0.00019452,2]
[372578886,1752691842190,-460.0,0.00019452,2]
[372578887,1752691842200,-185.64945012,0.00019452,2]
[372578888,1752691842210,-460.0,0.00019452,2]
[372578890,1752691842347,-460.0,0.00019452,2]
[372578891,1752691842379,-460.0,0.00019452,2]
[372578892,1752691842389,-3294.4,0.00019452,2]
[372578893,1752691842399,-460.0,0.00019452,2]
[372578894,1752691842409,-460.0,0.00019452,2]
[372578895,1752691842419,-460.0,0.00019452,2]
[372578896,1752691842428,-460.0,0.00019452,2]
[372578897,1752691842438,-460.0,0.00019452,2]
[372578898,1752691842447,-280.26589528,0.00019452,2]
[372578899,1752691842458,-480.7,0.00019452,2]
[372578900,1752691842468,-460.0,0.00019452,2]
[372578901,1752691842478,-460.0,0.00019452,2]
[372578902,1752691842490,-460.0,0.00019452,2]
[372578903,1752691842502,-460.0,0.00019452,2]
[372578904,1752691842514,-460.0,0.00019452,2]
[372578905,1752691842524,-460.0,0.00019452,2]
[372578906,1752691842534,-460.0,0.00019452,2]
[372578907,1752691842544,-490.68,0.00019452,2]
[372578908,1752691842554,-460.0,0.00019452,2]
[372578909,1752691842568,-463.78135921,0.00019452,2]
[372578910,1752691842585,-460.0,0.00019452,2]
[372578911,1752691842596,-1119.71,0.00019452,2]
[372578912,1752691842605,-460.0,0.00019452,2]
[372578913,1752691842615,-460.0,0.00019452,2]
[372578914,1752691842625,-460.0,0.00019452,2]
[372578915,1752691842635,-460.0,0.00019452,2]
[372578916,1752691842645,-460.0,0.00019452,2]
[372578917,1752691842655,-2035.33,0.00019452,2]
[372578918,1752691842664,-460.0,0.00019452,2]
[372578919,1752691842674,-460.0,0.00019452,2]
[372578921,1752691842683,-460.0,0.00019452,2]
[372578922,1752691842693,-460.0,0.00019452,2]
[372578923,1752691842703,-947.11,0.00019452,2]
[372578924,1752691842713,-1338.37,0.00019452,2]
[372578925,1752691842723,-1036.43,0.00019452,2]
[372578926,1752691842733,-460.0,0.00019452,2]
[372578927,1752691842743,-460.0,0.00019452,2]
[372578928,1752691842753,-4639.56,0.00019452,2]
[372578929,1752691842762,-857.94,0.00019452,2]
[372578930,1752691842772,-460.0,0.00019452,2]
[372578931,1752691842781,-6797.45,0.00019452,2]
[372578933,1752691842794,-626.62,0.00019452,2]
[372578934,1752691842804,-477.10780789,0.00019452,2]
[372578935,1752691842814,-460.0,0.00019452,2]
[372578936,1752691842823,-2073.7,0.00019452,2]
[372578937,1752691842833,-460.0,0.00019452,2]
[372578938,1752691842843,-460.0,0.00019452,2]
[372578939,1752691842853,-460.0,0.00019452,2]
[372578940,1752691842862,-492.93,0.00019452,2]
[372578941,1752691842874,-1017.05,0.00019452,2]
[372578942,1752691842883,-460.0,0.00019452,2]
[372578943,1752691842894,-4815.32,0.00019452,2]
[372578944,1752691842903,-460.0,0.00019452,2]
[372578945,1752691842913,-460.0,0.00019452,2]
[372578946,1752691842923,-460.0,0.00019452,2]
[372578947,1752691842933,-460.0,0.00019452,2]
[372578948,1752691842943,-4790.96,0.00019452,2]
[372578949,1752691842952,-460.0,0.00019452,2]
[372578950,1752691842962,-460.0,0.00019452,2]
[372578951,1752691842971,-460.0,0.00019452,2]
[372578952,1752691842981,-460.0,0.00019452,2]
[372578953,1752691842990,-460.0,0.00019452,2]
[372578954,1752691843000,-657.78,0.00019452,2]
[372578955,1752691843009,-736.37,0.00019452,2]
[372578956,1752691843020,-707.16,0.00019452,2]
[372578957,1752691843031,-460.0,0.00019452,2]
[372578958,1752691843044,-1707.87,0.00019452,2]
[372578959,1752691843053,-460.0,0.00019452,2]
[372578960,1752691843063,-460.0,0.00019452,2]
[372578961,1752691843073,-460.0,0.00019452,2]
[372578962,1752691843083,-460.0,0.00019452,2]
[372578963,1752691843092,-460.0,0.00019452,2]
[372578964,1752691843102,-460.0,0.00019452,2]
[372578965,1752691843113,-672.05,0.00019452,2]
[372578967,1752691843124,-460.0,0.00019452,2]
[372578968,1752691843134,-460.0,0.00019452,2]
[372578969,1752691843143,-460.0,0.00019452,2]
[372578970,1752691843153,-754.8,0.00019452,2]
[372578971,1752691843163,-460.0,0.00019452,2]
[372578972,1752691843173,-285.2265671,0.00019452,2]
[372578974,1752691843183,-2035.47,0.00019452,2]
[372578976,1752691843192,-2856.91,0.00019452,2]
[372578978,1752691843202,-460.0,0.00019452,2]
[372578980,1752691843212,-460.0,0.00019452,2]
[372578982,1752691843222,-460.0,0.00019452,2]
[372578985,1752691843231,-460.0,0.00019452,2]
[372578987,1752691843241,-460.0,0.00019452,2]
[372578990,1752691843251,-1429.59,0.00019452,2]
[372578992,1752691843260,-460.0,0.00019452,2]
[372578994,1752691843270,-694.94,0.00019452,2]
[372578996,1752691843279,-558.04,0.00019452,2]
[372578998,1752691843291,-460.0,0.00019452,2]
[372579000,1752691843301,-460.0,0.00019452,2]
[372579002,1752691843311,-460.0,0.00019452,2]
[372579004,1752691843321,-1651.48,0.00019452,2]
[372579007,1752691843331,-819.02,0.00019452,2]
[372579009,1752691843342,-524.37,0.00019452,2]
[372579011,1752691843352,-460.0,0.00019452,2]
[372579013,1752691843361,-460.0,0.00019452,2]
[372579015,1752691843371,-460.0,0.00019452,2]
[372579016,1752691843381,-2569.94,0.00019452,2]
[372579017,1752691843391,-460.0,0.00019452,2]
[372579018,1752691843400,-460.0,0.00019452,2]
[372579019,1752691843409,-460.0,0.00019452,2]
[372579020,1752691843419,-460.0,0.00019452,2]
[372579021,1752691843428,-2591.26,0.00019452,2]
[372579022,1752691843438,-460.0,0.00019452,2]
[372579023,1752691843448,-604.35,0.00019452,2]
[372579024,1752691843457,-460.0,0.00019452,2]
[372579025,1752691843467,-460.0,0.00019452,2]
[372579026,1752691843476,-546.21,0.00019452,2]
[372579027,1752691843486,-462.73547816,0.00019452,2]
[372579028,1752691843495,-460.0,0.00019452,2]
[372579029,1752691843505,-460.0,0.00019452,2]
[372579030,1752691843514,-854.66,0.00019452,2]
[372579031,1752691843523,-460.0,0.00019452,2]
[372579032,1752691843532,-460.0,0.00019452,2]
[372579033,1752691843544,-460.0,0.00019452,2]
[372579034,1752691843553,-2805.27,0.00019452,2]
[372579035,1752691843562,-460.0,0.00019452,2]
[372579036,1752691843572,-460.0,0.00019452,2]
[372579038,1752691843582,-460.0,0.00019452,2]
[372579039,1752691843592,-460.0,0.00019452,2]
[372579041,1752691843601,-460.0,0.00019452,2]
[372579042,1752691843611,-298.45051039,0.00019538,2]
[372579043,1752691843622,-1000.0,0.00019721,2]
[372579044,1752691843631,-500.0,0.00019724,2]
[372579045,1752691843641,-460.0,0.00019726,2]
[372579046,1752691843651,-460.0,0.00019726,2]
[372579047,1752691843660,-460.0,0.00019726,2]
[372579048,1752691843670,-460.0,0.00019726,2]
[372579049,1752691843681,-460.0,0.00019726,2]
[372579050,1752691843690,-460.0,0.00019726,2]
[372579052,1752691843700,-460.0,0.00019726,2]
[372579054,1752691843709,-291.03584535,0.00019726,2]
[372579055,1752691843719,-460.0,0.00019726,2]
[372579056,1752691843728,-575.44,0.00019726,2]
[372579058,1752691843738,-460.0,0.00019726,2]
[372579059,1752691843747,-460.0,0.00019726,2]
[372579061,1752691843757,-460.0,0.00019726,2]
[372579063,1752691843766,-460.0,0.00019726,2]
[372579064,1752691843776,-460.0,0.00019726,2]
[372579065,1752691843787,-460.0,0.00019726,2]
[372579066,1752691843796,-460.0,0.00019726,2]
[372579067,1752691843806,-183.16881764,0.00019726,2]
[372579068,1752691843816,-512.75,0.00019726,2]
[372579069,1752691843827,-466.78,0.00019726,2]
[372579070,1752691843837,-460.0,0.00019726,2]
[372579071,1752691843847,-460.0,0.00019726,2]
[372579072,1752691843857,-634.38,0.00019726,2]
[372579073,1752691843867,-460.0,0.00019726,2]
[372579074,1752691843876,-460.0,0.00019726,2]
[372579075,1752691843888,-460.0,0.00019726,2]
[372579076,1752691843898,-635.4,0.00019726,2]
[372579077,1752691843907,-460.0,0.00019726,2]
[372579078,1752691843917,-460.0,0.00019726,2]
[372579079,1752691843926,-479.04,0.00019726,2]
[372579080,1752691843936,-377.72524414,0.00019726,2]
[372579081,1752691843945,-460.0,0.00019726,2]
[372579082,1752691843954,-300.15,0.00019726,2]
[372579083,1752691843964,-716.68,0.00019726,2]
[372579084,1752691843974,-460.0,0.00019726,2]
[372579085,1752691843983,-460.0,0.00019726,2]
[372579086,1752691843993,-460.0,0.00019726,2]
[372579087,1752691844002,-861.28,0.00019726,2]
[372579088,1752691844012,-460.0,0.00019726,2]
[372579089,1752691844022,-460.0,0.00019726,2]
[372579090,1752691844034,-460.0,0.00019726,2]
[372579091,1752691844046,-460.0,0.00019726,2]
[372579092,1752691844056,-460.0,0.00019726,2]
[372579093,1752691844065,-460.0,0.00019726,2]
[372579094,1752691844076,-460.0,0.00019726,2]
[372579095,1752691844086,-523.25231845,0.00019726,2]
[372579096,1752691844095,-441.6717135,0.00019726,2]
[372579097,1752691844106,-3294.4,0.00019726,2]
[372579098,1752691844116,-460.0,0.00019726,2]
[372579099,1752691844127,-460.0,0.00019726,2]
[372579100,1752691844136,-460.0,0.00019726,2]
[372579101,1752691844146,-480.7,0.00019726,2]
[372579102,1752691844156,-460.0,0.00019726,2]
[372579104,1752691844167,-267.12146662,0.00019726,2]
[372579105,1752691844178,-460.0,0.00019726,2]
[372579106,1752691844189,-460.0,0.00019726,2]
[372579107,1752691844199,-460.0,0.00019726,2]
[372579108,1752691844208,-231.0427948,0.00019726,2]
[372579109,1752691844217,-460.0,0.00019726,2]
[372579110,1752691844227,-490.68,0.00019726,2]
[372579111,1752691844237,-460.0,0.00019726,2]
[372579112,1752691844246,-460.0,0.00019726,2]
[372579113,1752691844256,-1119.71,0.00019726,2]
[372579114,1752691844265,-460.0,0.00019726,2]
[372579115,1752691844275,-460.0,0.00019726,2]
[372579116,1752691844287,-460.0,0.00019726,2]
[372579117,1752691844298,-460.0,0.00019726,2]
[372579118,1752691844308,-2035.33,0.00019726,2]
[372579119,1752691844317,-460.0,0.00019726,2]
[372579120,1752691844327,-460.0,0.00019726,2]
[372579121,1752691844336,-460.0,0.00019726,2]
[372579122,1752691844346,-460.0,0.00019726,2]
[372579123,1752691844355,-460.0,0.00019726,2]
[372579124,1752691844366,-947.11,0.00019726,2]
[372579125,1752691844377,-1338.37,0.00019726,2]
[372579126,1752691844388,-1036.43,0.00019726,2]
[372579127,1752691844398,-460.0,0.00019726,2]
[372579128,1752691844407,-4639.56,0.00019726,2]
[372579129,1752691844417,-857.94,0.00019726,2]
[372579130,1752691844427,-452.79079048,0.00019726,2]
[372579131,1752691844436,-6797.45,0.00019726,2]
[372579132,1752691844446,-626.62,0.00019726,2]
[372579133,1752691844455,-2073.7,0.00019726,2]
[372579134,1752691844465,-460.0,0.00019726,2]
[372579135,1752691844474,-460.0,0.00019726,2]
[372579136,1752691844484,-460.0,0.00019726,2]
[372579137,1752691844493,-1017.05,0.00019726,2]
[372579138,1752691844503,-460.0,0.00019726,2]
[372579139,1752691844513,-4815.32,0.00019726,2]
[372579140,1752691844523,-460.0,0.00019726,2]
[372579141,1752691844532,-460.0,0.00019726,2]
[372579142,1752691844543,-460.0,0.00019726,2]
[372579143,1752691844552,-253.73547133,0.00019726,2]
[372579144,1752691844562,-4790.96,0.00019726,2]
[372579145,1752691844571,-460.0,0.00019726,2]
[372579146,1752691844581,-460.0,0.00019726,2]
[372579147,1752691844591,-460.0,0.00019726,2]
[372579148,1752691844601,-657.78,0.00019726,2]
[372579149,1752691844611,-736.37,0.00019726,2]
[372579150,1752691844620,-707.16,0.00019726,2]
[372579151,1752691844629,-1707.87,0.00019726,2]
[372579152,1752691844639,-460.0,0.00019726,2]
[372579153,1752691844649,-460.0,0.00019726,2]
[372579154,1752691844658,-460.0,0.00019726,2]
[372579155,1752691844669,-460.0,0.00019726,2]
[372579156,1752691844679,-460.0,0.00019726,2]
[372579157,1752691844688,-672.05,0.00019726,2]
[372579158,1752691844697,-460.0,0.00019726,2]
[372579159,1752691844707,-460.0,0.00019726,2]
[372579160,1752691844717,-460.0,0.00019726,2]
[372579161,1752691844726,-460.0,0.00019726,2]
[372579162,1752691844772,-754.8,0.00019726,2]
[372579163,1752691844782,-2035.47,0.00019726,2]
[372579164,1752691844793,-2856.91,0.00019726,2]
[372579165,1752691844803,-374.4468854,0.00019726,2]
[372579166,1752691844812,-558.57119814,0.00019726,2]
[372579167,1752691844822,-460.0,0.00019726,2]
[372579168,1752691844831,-1429.59,0.00019726,2]
[372579169,1752691844841,-694.94,0.00019726,2]
[372579170,1752691844852,-558.04,0.00019726,2]
[372579171,1752691844861,-460.0,0.00019726,2]
[372579172,1752691844871,-460.0,0.00019726,2]
[372579173,1752691844881,-460.0,0.00019726,2]
[372579174,1752691844891,-1651.48,0.00019726,2]
[372579175,1752691844902,-819.02,0.00019726,2]
[372579176,1752691844911,-524.37,0.00019726,2]
[372579177,1752691844921,-460.0,0.00019726,2]
[372579178,1752691844930,-460.0,0.00019726,2]